Cogmind - Beta 13 @@@ ROGUE MODE // 2024.05.05 @ 16:52:28 Player: willy Result: Destroyed by S-10 Pest with Light Assault Rifle Performance ------------- Evolutions (2) 1000 Regions Visited (3) 600 Robots Destroyed (20) 100 Value Destroyed (490) 490 Prototype IDs (0) 0 Alien Tech Used (0) 0 Bonus (0) 0 TOTAL SCORE: 2190 Bonus ------- None Cogmind --------- Core Integrity 0/550 Matter 262/300 Energy 98/100 System Corruption 1% Temperature Cool (1) Movement Walking (120) Location -8/Materials Parts ------- > --- POWER (2) -------- (None) > --- PROPULSION (3) --- Aluminum Leg > --- UTILITY (3) ------ (None) > --- WEAPON (3) ------- (None) > --- INVENTORY (5) ---- (None) Peak State ------------ > --- POWER ------------ Ion Engine Light Nuclear Core > --- PROPULSION ------- Aluminum Leg Aluminum Leg > --- UTILITY ---------- Advanced Weight Redist. System Scrap Shield > --- WEAPON ----------- Field Laser Field Laser Improved Grenade Launcher > --- INVENTORY -------- Ion Engine Improved Heat Sink Light Armor Plating [Rating: 22] Favorites ----------- Power Ion Engine Engine Ion Engine Power Core Light Nuclear Core Propulsion Aluminum Leg Leg Aluminum Leg Wheel Wheel Utility Targeting Computer Device Heat Sink Processor Targeting Computer Protection Scrap Shield Weapon Medium Laser Energy Gun Medium Laser Ballistic Gun Assault Rifle Launcher Improved Grenade Launcher Special Weapon Mining Laser Build | -11 -10 -10 -8 ------- Run | Yrd Mat Sub Mat Slots Evolved 4 | . . . 4 Power 1 | . . . 1 Propulsion 1 | . . . 1 Utility 1 | . . . 1 Weapon 1 | . . . 1 Parts Attached 34 | 6 12 1 15 Power 6 | 1 2 . 3 Engine 4 | 1 1 . 2 Core 2 | . 1 . 1 Reactor . | . . . . Propulsion 9 | 2 3 . 4 Treads . | . . . . Leg 4 | . 3 . 1 Wheel 5 | 2 . . 3 Hover . | . . . . Flight . | . . . . Utility 9 | 1 4 1 3 Device 5 | 1 2 . 2 Storage . | . . . . Processor 1 | . 1 . . Hackware . | . . . . Protection 3 | . 1 1 1 Artifact . | . . . . Weapon 10 | 2 3 . 5 Energy Gun 6 | 1 2 . 3 Energy Cannon . | . . . . Ballistic Gun 2 | 1 . . 1 Ballistic Cannon . | . . . . Launcher 1 | . . . 1 Special Weapon 1 | . 1 . . Impact Weapon . | . . . . Slashing Weapon . | . . . . Piercing Weapon . | . . . . Special Melee Weapon . | . . . . Unidentified Prototypes . | . . . . Parts Lost 22 | . 3 1 18 Power 5 | . 1 . 4 Propulsion 6 | . 1 . 5 Utility 4 | . . . 4 Weapon 7 | . 1 1 5 Highest Loss Streak 11 | . 1 1 11 To Critical Strikes 1 | . . 1 . Average Slot Usage (%) 79 | . 89 65 60 Engine 4 | . 5 . 5 Core 8 | . 7 14 7 Leg 22 | . 25 28 13 Wheel 1 | . 2 . 1 Device 10 | . 13 6 5 Processor 8 | . 11 6 . Protection 4 | . 2 8 7 Energy Gun 13 | . 15 2 12 Ballistic Gun 1 | . 2 . . Launcher 1 | . . . 6 Special Weapon 1 | . 2 . . Naked Turns 16 | . . . 16 Heaviest Build 40 | 9 13 23 40 Greatest Support 32 | 20 20 20 32 Greatest Overweight (x) 4 | . 1 1 4 Average Overweight (x) . | . . . . Largest Inventory Capacity 5 | 5 5 5 5 Average Capacity 5 | 5 5 5 5 Most Carried 5 | 5 5 5 5 Average Carried 3 | 2 4 3 3 Final Capacity 5 | 5 5 5 5 Final Carried 5 | 3 5 3 . Class Distribution -------------------- 88% | Mutant 9% | Tank Dominant Class ---------------- Mutant | -10/Materials Mutant | -10/Subcaves Tank | -8/Materials Resources | -11 -10 -10 -8 ----------- Run | Yrd Mat Sub Mat Matter Collected 606 | 284 144 . 178 Remotely . | . . . . Salvage Created 573 | 35 228 . 310 Parts 34 | 5 12 . 17 Haulers Intercepted . | . . . . Recyclers Shooed 2 | . . . 2 Parts Field Recycled . | . . . . Retrieved Matter . | . . . . Parts Self-Destructed . | . . . . Prevented . | . . . . Kills | -11 -10 -10 -8 ------- Run | Yrd Mat Sub Mat Combat Hostiles Destroyed 17 | 1 7 . 9 Guns 14 | 1 7 . 6 AOE 3 | . . . 3 Classes Destroyed 5 | 1 1 . 3 Builder 1 | . . . 1 Recycler 1 | . . . 1 Watcher 1 | . . . 1 Swarmer 8 | . 3 . 5 Grunt 9 | 1 4 . 4 Best Kill Streak 6 | 1 3 . 6 Combat Bots Only 5 | 1 3 . 5 Max Kills in Single Turn 3 | 1 1 . 3 Gunslinging . | . . . . Exploded 2 | . . . 2 Melee . | . . . . Uniques/NPCs Destroyed . | . . . . Combat | -11 -10 -10 -8 -------- Run | Yrd Mat Sub Mat Hostile Shots Fired 248 | 13 71 2 162 Missed 52 | 2 18 . 32 Damage Taken 2415 | 120 536 42 1717 Core 701 | 45 105 . 551 Absorbed by Shields . | . . . . Core Remaining (%) 61 | 82 . 40 . Volleys Fired 101 | 8 62 . 31 Largest 3 | 2 2 . 3 Hottest 162 | 60 150 . 162 Shots Fired 162 | 16 81 . 65 Gun 156 | 16 80 . 60 Cannon . | . . . . Launcher 5 | . . . 5 Special 1 | . 1 . . Kinetic 32 | 8 12 . 12 Thermal 125 | 8 69 . 48 Explosive 5 | . . . 5 Electromagnetic . | . . . . Robot Hit Streak 8 | 4 5 . 8 Robot Miss Streak 9 | 3 9 . 7 Penetration Max . | . . . . Secondary Targets 2 | . 1 . 1 Max Gunslinging Chain 1 | . 1 . 1 Shots Hit Robots 71 | 6 34 . 31 Core Hits 39 | 2 12 . 25 Critical Kills . | . . . . Critical Parts Destroyed . | . . . . Critical Strikes 4 | . 3 . 1 Burn 4 | . 3 . 1 Melee Attacks . | . . . . Impact . | . . . . Slashing . | . . . . Piercing . | . . . . Sneak Attacks . | . . . . Combat Hostiles . | . . . . Follow-up Attacks . | . . . . Damage Inflicted 1398 | 70 450 . 878 Guns 928 | 70 445 . 413 Cannons . | . . . . Explosions 430 | . . . 430 Melee . | . . . . Ramming 40 | . 5 . 35 Kinetic 135 | 25 48 . 62 Thermal 793 | 45 397 . 351 Explosive 430 | . . . 430 Electromagnetic . | . . . . Impact . | . . . . Slashing . | . . . . Piercing . | . . . . Highest Corruption 1 | . . . 1 Average Corruption 1 | . . . 1 Corruption Purged . | . . . . Corruption Blocked . | . . . . Overload Shots . | . . . . Overflow Damage 11 | . . . 11 Projectiles . | . . . . Explosions 11 | . . . 11 Melee . | . . . . Knockbacks . | . . . . Impact . | . . . . Kinetic . | . . . . Secondary . | . . . . Self-Inflicted Damage 50 | . . . 50 Shots 1 | . . . 1 Rammed 14 | . . . 14 Targets Rammed 15 | . 1 . 14 Kicked 1 | . 1 . . Crushed . | . . . . Highest Temperature 515 | 1 119 . 515 Average Temperature 105 | 1 34 . 174 Received Heat Transfer 969 | 66 195 6 702 Effects 9 | . . . 9 Shutdowns 1 | . . . 1 Energy Bleed 2 | . . . 2 Interference 2 | . . . 2 Matter Decay 3 | . . . 3 Short Circuit 1 | . . . 1 Siege Activations . | . . . . Robots Corrupted . | . . . . Combat Hostiles . | . . . . Parts Fried . | . . . . Impact Corruptions . | . . . . Robots Melted . | . . . . Combat Hostiles . | . . . . Parts Melted 1 | . . . 1 Heat Transferred 2273 | 100 1322 . 851 Parts Sabotaged . | . . . . Parts Stolen . | . . . . Parts Stripped . | . . . . Power Chain Reactions . | . . . . Alert | -11 -10 -10 -8 ------- Run | Yrd Mat Sub Mat Peak Influence 274 | 20 130 . 274 Initial 14 | . . . 14 Average 52 | 7 62 . 101 Maximum Alert Level 1 | . . . 1 Low Security (%) 94 | 100 100 . 71 Level 1 5 | . . . 28 Level 2 . | . . . . Level 3 . | . . . . Level 4 . | . . . . Level 5 . | . . . . High Security . | . . . . Max Security . | . . . . Squads Dispatched 3 | . 2 . 1 Investigation 2 | . 1 . 1 Extermination . | . . . . Reinforcement 1 | . 1 . . Assault . | . . . . Garrison . | . . . . Intercept . | . . . . Searches Triggered . | . . . . Construction Impeded . | . . . . Haulers Reinforced . | . . . . Active Scanning Responses . | . . . . Cargo Convoy Interrupts . | . . . . Stealth | -11 -10 -10 -8 --------- Run | Yrd Mat Sub Mat Distress Signals 1 | . . . 1 Communications Jammed . | . . . . Distress Signals . | . . . . Times Spotted 58 | 1 21 2 34 Peak Tracking Total 10 | 1 4 2 10 Tactical Retreats 8 | . 2 . 6 Traps | -11 -10 -10 -8 ------- Run | Yrd Mat Sub Mat Traps Triggered 2 | . 1 . 1 Indirectly . | . . . . Trap Hack Attempts . | . . . . Triggered . | . . . . Disarmed . | . . . . Reprogrammed . | . . . . Reused . | . . . . Traps Extracted . | . . . . Installed . | . . . . Triggered . | . . . . Machines | -11 -10 -10 -8 ---------- Run | Yrd Mat Sub Mat Machines Disabled . | . . . . Max in Single Turn . | . . . . Machines Repaired . | . . . . Machines Dismantled . | . . . . Machines Sabotaged . | . . . . Overloaded Fab Kills . | . . . . Hacking | -11 -10 -10 -8 --------- Run | Yrd Mat Sub Mat Machines Accessed 3 | . 2 . 1 Terminals 3 | . 2 . 1 Fabricators . | . . . . Repair Stations . | . . . . Recycling Units . | . . . . Scanalyzers . | . . . . Garrison Access . | . . . . Total Hacks 5 | . 4 . 1 Successful 3 | . 3 . . Failed 2 | . 1 . 1 Catastrophic . | . . . . Database Lockouts . | . . . . Manual . | . . . . Terminals 5 | . 4 . 1 Fabricators . | . . . . Repair Stations . | . . . . Recycling Units . | . . . . Scanalyzers . | . . . . Garrison Access . | . . . . Terminal Hacks 3 | . 3 . . Alert Level 1 | . 1 . . Locate Traps 1 | . 1 . . Zone Layout 1 | . 1 . . Fabricator Hacks . | . . . . Repair Station Hacks . | . . . . Recycling Unit Hacks . | . . . . Scanalyzer . | . . . . Garrison Access Hacks . | . . . . Unauthorized Hacks . | . . . . Terminals . | . . . . Fabricators . | . . . . Repair Stations . | . . . . Recycling Units . | . . . . Scanalyzers . | . . . . Garrison Access . | . . . . Data Cores Recovered . | . . . . Used . | . . . . Hacking Detections 1 | . 1 . . Full Trace Events . | . . . . Feedback Events . | . . . . Feedback Blocked . | . . . . Robot Schematics Acquired . | . . . . Robots Built . | . . . . Authchips . | . . . . Time . | . . . . Total Robot Build Rating . | . . . . Part Schematics Acquired . | . . . . Parts Built . | . . . . Authchips . | . . . . Time . | . . . . Total Part Build Rating . | . . . . Parts Repaired . | . . . . Time . | . . . . Parts Recycled . | . . . . Recycled Matter . | . . . . Retrieved Matter . | . . . . Retrieved Components . | . . . . Parts Scanalyzed . | . . . . Part Schematics Acquired . | . . . . Parts Damaged . | . . . . Bothacking | -11 -10 -10 -8 ------------ Run | Yrd Mat Sub Mat Used RIF Installer . | . . . . Robots Hacked . | . . . . Non-combat . | . . . . Combat . | . . . . Robot Hacks Applied . | . . . . Relay Couplers Released . | . . . . Fabnet Peak Effective % . | . . . . Robots Rewired . | . . . . Allies Hacked . | . . . . Hacks Repelled . | . . . . Allies | -11 -10 -10 -8 -------- Run | Yrd Mat Sub Mat Total Allies . | . . . . Largest Group . | . . . . Highest-Rated Group . | . . . . Highest-Rated Ally . | . . . . Total Orders . | . . . . Ally Attacks . | . . . . Total Damage . | . . . . Kills . | . . . . Allies Corrupted . | . . . . Allies Melted . | . . . . Intel | -11 -10 -10 -8 ------- Run | Yrd Mat Sub Mat Robot Analysis Total . | . . . . Derelict Logs Recovered 1 | . . 1 . Drone Launches . | . . . . Drone Recoveries . | . . . . Exploration | -11 -10 -10 -8 ------------- Run | Yrd Mat Sub Mat Turns Passed 2476 | 720 1099 213 444 Spaces Moved 1243 | 244 681 137 181 Core 64 | 26 . . 38 Treads . | . . . . Legs 876 | . 606 137 133 Wheels 303 | 218 75 . 10 Hover . | . . . . Flight . | . . . . Fastest Speed 50 | 50 80 120 50 Average Speed 118 | 76 115 152 157 Slowest Speed 260 | 80 120 190 260 Overloaded Moves . | . . . . Propulsion Burnouts . | . . . . Robots Hopped . | . . . . Cave-ins Triggered . | . . . . Exploration Rate (%) 20 | 18 46 6 11 Regions Visited 3 Branch Regions 1 Pre-discovered Areas . | . . . . Known Exits Taken . | . . . . Unknown Exits Taken 3 | 1 1 1 . Scrap Searched . | . . . . Spaces Dug . | . . . . Terrain Destroyed 48 | . . . 48 Melee . | . . . . Projectile . | . . . . AOE 48 | . . . 48 Terrain Rammed . | . . . . Walls Destroyed . | . . . . Machines Disabled . | . . . . Actions | -11 -10 -10 -8 --------- Run | Yrd Mat Sub Mat Total 2093 | 760 909 144 280 Wait 652 | 494 131 . 27 Move 1240 | 243 680 136 181 Hop . | . . . . Pick Up 37 | 9 14 2 12 Fast Attach . | . . . . Attach 29 | 6 7 1 15 Detach . | . . . . Swap 5 | . 5 . . Drop 14 | . 9 5 . Fire 101 | 8 62 . 31 Melee . | . . . . Ram 14 | . . . 14 Kick 1 | . 1 . . Crush . | . . . . Escape Stasis . | . . . . Rewire . | . . . . Trap . | . . . . Miscellaneous . | . . . . Route ------- -11/Scrapyard -10/Materials (discovered 3 exits: [*Mat] / [*Min] / [*Sub]) -10/Subcaves -8/Materials (discovered 1 exit: Fac) History --------- Turn | Location | Event 2 | -11/Scrapyard | Met Revision 17 57 | -11/Scrapyard | Discovered new exit (range 8) 721 | -11/Scrapyard | Entered Materials 722 | -10/Materials | Build established: Mutant 824 | -10/Materials | Discovered new exit (range 15) 1236 | -10/Materials | Core integrity fell below 50% 1435 | -10/Materials | Discovered new exit (range 12) 1480 | -10/Materials | Discovered new exit (range 15) 1820 | -10/Materials | Entered Subcaves 1833 | -10/Subcaves | Learned location of 1 exit from Materials 1844 | -10/Subcaves | Discovered new exit (range 5) 1864 | -10/Subcaves | Ambushed by Subdwellers from Twisted Machinery 2033 | -10/Subcaves | Entered Materials 2033 | -8/Materials | Evolved 4 slots: Power x1, Propulsion x1, Utility x1, Weapon x1 2034 | -8/Materials | Identified exit to Factory 2418 | -8/Materials | Core integrity fell below 50% 2428 | -8/Materials | Lost 11 parts (2p4n2u3w) 2458 | -8/Materials | Core integrity fell below 20% 2477 | -8/Materials | Destroyed by S-10 Pest with Light Assault Rifle Last Messages --------------- Acquired Particle Gun. Acquired Lgt. Nuclear Core. Acquired Lgt. Assault Rifle. Acquired Com. Wheel. W-25 Informer sends out distress signal. Destroyed Aluminum Leg. G-47 Trooper destroyed. Critical hit (Burn: +37). Com. Wheel destroyed. G-47 Trooper suffers critical hit (Burn). Lgt. Armor Plating destroyed. Ion Engine destroyed. Critical hit (Burn: +37). Imp. Heat Sink destroyed. Lgt. Nuclear Core destroyed. S-10 Pest destroyed. Particle Gun destroyed. Lgt. Assault Rifle destroyed. Acquired 19 matter. Acquired Aluminum Leg. Map ----- +----------------------------------------------------+ | #?????????????????????????????? | | ???###### #?????????????????????????????? | | ???# ################??????????????? | | ???# ???????????? | | ???# ???????????? | | ???# ###########??????????????? | | ???# ###/### """ #?###########????????????? | | ???## ### # """ #?# #????????????? | | ????# #?# # """ #?# #????????????? | | ????# #?# # ### #????????????? | | ????# #?# # # #????????????? | | ????# #?# # %/ #????????????? | | ????+ #?# *# g# #????????????? | | ????# #?# **## #"T"### # #????????????? | | ????# #?# [**## #"""#?#s# = #????????????? | | ????# #?# ## #####?#%########/##????????????? | | ????# #?####### #?????# #??????# #?????????????? | | ????# ????????# ??????# #??????# #?????????????? | | ????? ?????????#??????# #??????# #?????????????? | | ????????????????????????# #??????# #?????????????? | | ????????????????????????# #??????# #?????????????? | | ????????????????????????# #?###### #?????????????? | | ????????????????????????# ### # ## #?????????????? | | ????????????????????????# ######## #?????????????? | | ????????????????????????# #?????????????? | | ????????????????????????#@##########?????????????? | | ????????????????????????# ## = #???????????????? | | ????????????????????????# ########???????????????? | | ????????????????????????# #??????????????????????? | | ????????????????????????# #??????????????????????? | | ????????????????????????# #??????????????????????? | | ????????????# ????????# #??????????????????????? | | ????????????# ######+####???????????????????? | | ???????????# ! #???????????????????? | | ???????????# %* ! % / +??????????????? | | ???????????# !%%% ! ## #??????????????? | | ???????????# [ [ #??? #??????????????? | | ???????????# # = #???????????????????? | | ????????????# ## #### ###???????????????????? | | ???????????? ###????# #??????????????????????? | | ???????????? ?????????#???????????????????????? | | ????????????? ???????????????????????????????????? | | ?????????????????????????????????????????????????? | | ?????????????????????????????????????????????????? | | ?????????????????????????????????????????????????? | | ?????????????????????????????????????????????????? | | ?????????????????????????????????????????????????? | | ?????????????????????????????????????????????????? | | ?????????????????????????????????????????????????? | | ?????????????????????????????????????????????????? | +----------------------------------------------------+ Best States ------------- Heat Dissipation 45 Energy Generation 19 Energy Capacity 310 Matter Stores 300 Matter Capacity 300 Sight Range 16 Terrain Scan Density 10 ECM Strength 1 Additional Mass Support 9 Armor Coverage 800 Evasion (%) 55 Targeting Accuracy 5 Item Schematics ----------------- None Robot Schematics ------------------ None Fabricated ------------ Nothing Alien Tech Used ----------------- None Achievements -------------- None Challenges ------------ None Game ------ Seed UltimateMetafiberMace Manual? 0 Play Time 00:33:26 Cumulative 2.6 hours Start 2024.05.05 @ 16:19:17 End 2024.05.05 @ 16:52:28 Sessions 1 Manual Loads 0 Difficulty Rogue Special Mode None Game No. 2 Rogue 1 Adventurer 1 Explorer 0 Win Type - Total 0 Types 0/0/0/0/0/0/0/0/0 Lore% 1 Gallery% 7 Achievement% 6 Wizard Run 0 Options --------- Layout 1 ASCII 0 Keyboard 0 Movement Mouse Keybinds 0 Fullscreen 1 Font 24/Smallcaps Map View 50x35 Zoom Use 0% Tactical HUD 0 Map Filters NONE Filters NONE Steam 1 RUN: 8bc9eded-8df2-4653-92a2-df510111d9bc